fUSD/lending_fUSD_20240517
["ID","MTS","AMOUNT","RATE_DAILY","PERIOD"]
[327267758,1715951450239,-500.0,0.00012978,2]
[327267759,1715951450250,-151.0,0.00012978,2]
[327267760,1715951450261,-515.370449,0.00012978,2]
[327267761,1715951450274,-151.0,0.00012978,2]
[327267762,1715951450286,-151.0,0.00012978,2]
[327267763,1715951450299,-500.0,0.00012978,2]
[327267764,1715951450314,-500.0,0.00012978,2]
[327267765,1715951450327,-500.0,0.00012978,2]
[327267766,1715951450340,-500.0,0.00012978,2]
[327267767,1715951450355,-500.0,0.00012978,2]
[327267768,1715951450369,-500.0,0.00012978,2]
[327267769,1715951450381,-1485.82052,0.00012978,2]
[327267770,1715951450393,-1485.82052,0.00012978,2]
[327267771,1715951450403,-868.01,0.00012978,2]
[327267772,1715951450414,-500.0,0.00012978,2]
[327267773,1715951450428,-500.0,0.00012978,2]
[327267774,1715951450441,-151.0,0.00012978,2]
[327267775,1715951450454,-151.0,0.00012978,2]
[327267776,1715951450465,-5267.30033955,0.00012978,2]
[327267777,1715951450476,-184.40876991,0.00012978,2]
[327267778,1715951450488,-218.909937,0.00012978,2]
[327267779,1715951450501,-367.3543912,0.00012979,2]
[327267780,1715951450514,-275.0,0.00012979,2]
[327267781,1715951450525,-151.0,0.00012979,2]
[327267782,1715951450536,-500.0,0.00012979,2]
[327267783,1715951450547,-500.0,0.00012979,2]
[327267784,1715951450559,-500.0,0.00012979,2]
[327267785,1715951450572,-451.48,0.00012979,2]
[327267786,1715951450584,-284.165869,0.00012979,2]
[327267787,1715951450596,-151.0,0.00012979,2]
[327267788,1715951450608,-284.165869,0.00012979,2]
[327267789,1715951450620,-151.0,0.00012979,2]
[327267790,1715951450631,-151.0,0.00012979,2]
[327267791,1715951450644,-176.777051,0.00012979,2]
[327267792,1715951450656,-151.0,0.00012979,2]
[327267793,1715951450668,-151.0,0.00012979,2]
[327267794,1715951450679,-151.0,0.00012979,2]
[327267795,1715951450690,-500.0,0.00012979,2]
[327267796,1715951450701,-1566.06,0.00012979,2]
[327267797,1715951450713,-500.0,0.00012979,2]
[327267798,1715951450724,-500.0,0.00012979,2]
[327267799,1715951450736,-420.22,0.00012979,2]
[327267800,1715951450747,-344.5,0.00012979,2]
[327267801,1715951450758,-500.0,0.00012979,2]
[327267802,1715951450768,-500.0,0.00012979,2]
[327267803,1715951450779,-500.0,0.00012979,2]
[327267804,1715951450790,-500.0,0.00012979,2]
[327267805,1715951450801,-565.6,0.00012979,2]
[327267806,1715951450813,-500.0,0.00012979,2]
[327267807,1715951450824,-500.0,0.00012979,2]
[327267808,1715951450839,-500.0,0.00012979,2]
[327267809,1715951450850,-500.0,0.00012979,2]
[327267810,1715951450862,-880.34,0.00012979,2]
[327267811,1715951450874,-634.49,0.00012979,2]
[327267812,1715951450886,-500.0,0.00012979,2]
[327267813,1715951450897,-181.75,0.00012979,2]
[327267814,1715951450908,-500.0,0.00012979,2]
[327267815,1715951450920,-225.88,0.00012979,2]
[327267816,1715951450933,-500.0,0.00012979,2]
[327267817,1715951450943,-500.0,0.00012979,2]
[327267818,1715951450955,-500.0,0.00012979,2]
[327267819,1715951450967,-500.0,0.00012979,2]
[327267820,1715951450979,-500.0,0.00012979,2]
[327267821,1715951450991,-500.0,0.00012979,2]
[327267822,1715951451004,-500.0,0.00012979,2]
[327267823,1715951451017,-500.0,0.00012979,2]
[327267824,1715951451028,-568.12,0.00012979,2]
[327267825,1715951451040,-500.0,0.00012979,2]
[327267826,1715951451052,-500.0,0.00012979,2]
[327267827,1715951451063,-3604.52,0.00012979,2]
[327267828,1715951451075,-648.02,0.00012979,2]
[327267829,1715951451087,-500.0,0.00012979,2]
[327267830,1715951451098,-648.02,0.00012979,2]
[327267831,1715951451110,-500.0,0.00012979,2]
[327267832,1715951451122,-540.5,0.00012979,2]
[327267833,1715951451133,-540.5,0.00012979,2]
[327267834,1715951451145,-245.66,0.00012979,2]
[327267835,1715951451156,-868.01,0.00012979,2]
[327267836,1715951451168,-532.23,0.00012979,2]
[327267837,1715951451180,-532.23,0.00012979,2]
[327267838,1715951451191,-500.0,0.00012979,2]
[327267839,1715951451202,-500.0,0.00012979,2]
[327267840,1715951451215,-500.0,0.00012979,2]
[327267841,1715951451226,-500.0,0.00012979,2]
[327267842,1715951451238,-752.33,0.00012979,2]
[327267843,1715951451250,-520.79,0.00012979,2]
[327267844,1715951451262,-696.95,0.00012979,2]
[327267845,1715951451273,-500.0,0.00012979,2]
[327267846,1715951451285,-500.0,0.00012979,2]
[327267847,1715951451296,-500.0,0.00012979,2]
[327267848,1715951451307,-471.65,0.00012979,2]
[327267849,1715951451320,-500.0,0.00012979,2]
[327267850,1715951451331,-500.0,0.00012979,2]
[327267851,1715951451343,-500.0,0.00012979,2]
[327267852,1715951451355,-500.0,0.00012979,2]
[327267853,1715951451367,-259.61,0.00012979,2]
[327267854,1715951451378,-4514.4,0.00012979,2]
[327267855,1715951451389,-4514.4,0.00012979,2]
[327267856,1715951451401,-500.0,0.00012979,2]
[327267857,1715951451413,-500.0,0.00012979,2]
[327267858,1715951451424,-500.0,0.00012979,2]
[327267859,1715951451436,-500.0,0.00012979,2]
[327267860,1715951451447,-500.0,0.00012979,2]
[327267861,1715951451457,-187.16,0.00012979,2]
[327267862,1715951451466,-500.0,0.00012979,2]
[327267863,1715951451475,-500.0,0.00012979,2]
[327267864,1715951451484,-500.0,0.00012979,2]
[327267865,1715951451493,-500.0,0.00012979,2]
[327267866,1715951451502,-500.0,0.00012979,2]
[327267867,1715951451512,-500.0,0.00012979,2]
[327267868,1715951451523,-500.0,0.00012979,2]
[327267869,1715951451532,-500.0,0.00012979,2]
[327267870,1715951451542,-475.28,0.00012979,2]
[327267871,1715951451552,-981.0,0.0001298,2]
[327267872,1715951451563,-129247.26644323,0.0001298,6]
[327267873,1715951452046,-3308.66806079,0.0001298,6]
[327267874,1715951452061,-3130.15,0.0001298,6]
[327267875,1715951452099,-4752.33374793,0.0001298,6]
[327267876,1715951452112,-307.44854805,0.0001298,6]
[327267877,1715951452191,-500.0,0.00012328,2]
[327267878,1715951452200,-31283.0816595,0.0001298,6]
[327267879,1715951452212,-6170.6,0.0001298,6]
[327267880,1715951452224,-307.50757653,0.0001298,6]
[327267881,1715951452252,-333.248,0.0001298,6]
[327267891,1715951801159,5382.977922,0.000235,120]
[327267907,1715952125623,379.70786046,0.000235,120]
[327267920,1715952231394,150.0,8.355e-05,2]
[327267921,1715952231417,150.0,8.355e-05,2]
[327267922,1715952231439,150.0,8.355e-05,2]
[327267923,1715952231461,150.0,8.355e-05,2]
[327267924,1715952231482,140.08,8.355e-05,2]
[327267931,1715952376660,-7514.47016042,8.988e-05,2]
[327267932,1715952376682,-2000.09259381,8.989e-05,2]
[327267933,1715952376703,-643.21413352,8.99e-05,2]
[327267934,1715952376724,-258.73981469,8.99e-05,2]
[327267935,1715952376744,-782.42991749,8.991e-05,2]
[327267936,1715952376765,-155.0,8.991e-05,2]
[327267937,1715952376785,-656.27275998,8.992e-05,2]
[327267938,1715952376809,-200.87999732,8.992e-05,2]
[327267939,1715952376831,-194.95386961,8.992e-05,2]
[327267940,1715952376856,-167.8287192,8.992e-05,2]
[327267941,1715952376877,-4741.84351629,8.993e-05,2]
[327267942,1715952376897,-155.0,8.993e-05,2]
[327267943,1715952376918,-817.97346777,8.994e-05,2]
[327267944,1715952376939,-155.0,8.995e-05,2]
[327267945,1715952376960,-3089.166756,8.995e-05,2]
[327267946,1715952376980,-3060.17009221,8.995e-05,2]
[327267947,1715952377002,-1247.992726,8.995e-05,2]
[327267948,1715952377024,-6158.97147569,8.995e-05,2]
[327267949,1715952378916,-150.0,8.995e-05,2]
[327267950,1715952379104,-293.53823842,8.995e-05,2]
[327267976,1715952633122,-688.56297057,8.995e-05,2]
[327267978,1715952633132,-855.53702943,8.996e-05,2]
[327267981,1715952633337,-977.03499773,8.996e-05,2]
[327267982,1715952633349,-384.20256361,8.996e-05,2]
[327267983,1715952633361,-579.0723931,8.996e-05,2]
[327267984,1715952633372,-2139.76192563,8.996e-05,2]
[327267985,1715952633383,-722.23231057,8.996e-05,2]
[327267986,1715952633395,-648.56859254,8.996e-05,2]
[327267987,1715952633406,-9093.21,8.996e-05,2]
[327267988,1715952633417,-322.36348245,8.996e-05,2]
[327267989,1715952633428,-6333.40301558,8.996e-05,2]
[327267990,1715952633441,-3853.55182797,8.996e-05,2]
[327267991,1715952633452,-662.43919484,8.996e-05,2]
[327267992,1715952633463,-441.23700119,8.996e-05,2]
[327267993,1715952633581,-9495.75951167,8.996e-05,2]
[327267996,1715952633593,-6789.42196491,8.996e-05,2]
[327267998,1715952633603,-14213.15570994,8.997e-05,2]
[327268000,1715952633613,-643.21413352,9.999e-05,2]
[327268002,1715952633622,-2019.35626414,0.0001,2]
[327268004,1715952633632,-3407.82,0.00010134,2]
[327268006,1715952633641,-250.0,0.0001014,2]
[327268008,1715952633650,-241.95,0.00010215,2]
[327268009,1715952633660,-200.0,0.00010248,2]
[327268011,1715952633669,-15085.58,0.00010291,2]
[327268012,1715952633678,-197.26,0.00010315,2]
[327268013,1715952633688,-1249.46,0.00010399,2]
[327268014,1715952633697,-156.14,0.00010485,2]
[327268015,1715952633706,-262.7,0.00010555,2]
[327268016,1715952633715,-397.54,0.00010555,2]
[327268017,1715952633724,-499.99,0.00010619,2]
[327268018,1715952633733,-740.08,0.00010619,2]
[327268019,1715952633743,-558.4,0.00010678,2]
[327268020,1715952633752,-1707.53,0.00010678,4]
[327268021,1715952633761,-1801.87,0.00010683,2]
[327268022,1715952633770,-873.7637899,0.0001077,2]
[327268023,1715952633779,-169.23,0.00010798,2]
[327268025,1715952633788,-5714.8710149,0.00010954,2]
[327268027,1715952633798,-951.78327246,0.00010958,2]
[327268029,1715952633808,-10000.0,0.00010959,2]
[327268031,1715952633820,-1003.94,0.00010959,2]
[327268033,1715952633829,-753.27,0.00010959,2]
[327268035,1715952633839,-200.0,0.00011,2]
[327268037,1715952633848,-156.14,0.00011031,2]
[327268039,1715952633858,-241.95,0.00011491,2]
[327268040,1715952633868,-5334.0655,0.00011597,2]
[327268042,1715952633878,-617.0,0.00011597,2]
[327268044,1715952633887,-4876.4374,0.00011597,2]
[327268046,1715952633898,-10360.5546,0.00011597,2]
[327268048,1715952633907,-183.084,0.00011597,2]
[327268049,1715952633916,-1111.8507,0.00011597,2]
[327268051,1715952633926,-4494.3047,0.00011599,2]
[327268053,1715952633935,-281.9491,0.00011599,2]
[327268054,1715952633945,-153.68,0.00011689,2]
[327268055,1715952633954,-205.41424698,0.00011689,2]
[327268056,1715952633963,-19606.22315878,0.00011696,2]
[327268057,1715952633973,-3279.84855016,0.00011697,2]
[327268058,1715952633982,-208.27152668,0.00011697,2]
[327268059,1715952633992,-288.65223755,0.00011697,2]
[327268060,1715952634002,-711.19450635,0.00011697,2]
[327268062,1715952634012,-304.50758252,0.00011697,2]
[327268063,1715952634021,-155.0,0.00011697,2]
[327268065,1715952634032,-282.55141763,0.00011697,2]
[327268067,1715952634041,-1210.37915373,0.00011697,2]
[327268068,1715952634052,-155.18997806,0.00011697,2]
[327268069,1715952634062,-336.25747067,0.00011697,2]
[327268070,1715952634072,-236.08287886,0.00011697,2]
[327268071,1715952634082,-298.39421916,0.00011697,2]
[327268072,1715952634092,-440.35264975,0.00011697,2]
[327268073,1715952634101,-335.47287697,0.00011697,2]
[327268074,1715952634111,-283.98444425,0.00011697,2]
[327268075,1715952634121,-206.3699626,0.00011697,2]
[327268076,1715952634131,-225.97112315,0.00011697,2]
[327268077,1715952634142,-323.68137164,0.00011697,2]
[327268078,1715952634152,-204.34387367,0.00011697,2]
[327268079,1715952634162,-158.39167548,0.00011697,2]
[327268080,1715952634172,-206.4148244,0.00011697,2]
[327268081,1715952634181,-155.42002003,0.00011697,2]
[327268082,1715952634191,-325.092023,0.00011697,2]
[327268083,1715952634202,-155.26323273,0.00011697,2]
[327268084,1715952634213,-155.15712365,0.00011697,2]
[327268085,1715952634222,-969.72210365,0.00011697,2]
[327268086,1715952634232,-2358.78776413,0.00011697,2]
[327268087,1715952634243,-157.04666537,0.00011697,2]
[327268088,1715952634252,-305.0,0.00011697,2]
[327268089,1715952634262,-155.0,0.00011697,2]
[327268090,1715952634272,-165.95926671,0.00011697,2]
[327268091,1715952634283,-23106.27137631,0.00011697,2]
[327268092,1715952634292,-766.76573756,0.00011697,2]
[327268093,1715952634302,-223.65370089,0.00011697,2]
[327268094,1715952634313,-1249.35755271,0.00011697,2]
[327268095,1715952634323,-276.38529063,0.00011697,2]
[327268096,1715952634332,-729.54929253,0.00011697,2]
[327268097,1715952634342,-258.35664336,0.00011697,2]
[327268098,1715952634352,-179.28826561,0.00011697,2]
[327268099,1715952634362,-155.0,0.00011697,2]
[327268100,1715952634372,-709.02988597,0.00011697,2]
[327268101,1715952634382,-221.2383557,0.00011697,2]
[327268102,1715952634391,-194.90807186,0.00011697,2]
[327268103,1715952634401,-291.98390773,0.00011697,2]
[327268104,1715952634410,-3393.70751215,0.00011697,2]
[327268105,1715952634420,-255.20118883,0.00011697,2]
[327268106,1715952634430,-427.74508601,0.00011697,2]
[327268107,1715952634439,-308.12039765,0.00011697,2]
[327268108,1715952634449,-299.89711403,0.00011697,2]
[327268109,1715952634458,-210.39960736,0.00011697,2]
[327268110,1715952634468,-366.94333179,0.00011697,2]
[327268111,1715952634478,-4212.63801329,0.00011698,2]
[327268112,1715952634487,-446.76445937,0.00011698,2]
[327268113,1715952634497,-28344.05513073,0.00011699,2]
[327268114,1715952634509,-504.69421276,0.00011699,2]
[327268115,1715952634521,-590.10296194,0.00011699,2]
[327268116,1715952634532,-2084.58601039,0.00011699,2]
[327268117,1715952634544,-3937.84036003,0.00011699,2]
[327268118,1715952634556,-8627.47359425,0.00011699,2]
[327268119,1715952634569,-2000.0,0.00011699,2]
[327268120,1715952634580,-4147.36848739,0.00011699,2]
[327268121,1715952634591,-19052.17027641,0.00011699,2]
[327268122,1715952634603,-13797.04186635,0.00011699,2]
[327268123,1715952634615,-492.84148313,0.00011699,2]
[327268124,1715952634626,-991.38567962,0.00011699,2]
[327268146,1715952638683,-63690.66075789,0.00011699,2]
[327268149,1715952638738,-500.6964493,0.00011699,2]
[327268150,1715952638760,-358.9537836,0.00011699,2]
[327268151,1715952638771,-233304.19812779,0.00011699,2]
[327268152,1715952638783,-131635.53971866,0.00011699,2]
[327268153,1715952638792,-5298.4147,0.000117,2]
[327268154,1715952638801,-5791.13587514,0.000117,2]
[327268155,1715952638812,-71438.09762486,0.000117,2]
[327268156,1715952638824,-1477.26933118,0.000117,2]
[327268157,1715952638832,-262.7,0.00011874,2]
[327268158,1715952638841,-158.87851074,0.00011898,2]
[327268159,1715952638850,-158.8785107,0.00011923,2]
[327268160,1715952638859,-558.4,0.00012013,2]
[327268161,1715952638868,-500.0,0.00012028,2]
[327268162,1715952638877,-967.45,0.00012055,2]
[327268163,1715952638886,-1223.39,0.00012055,2]
[327268164,1715952638895,-318.05,0.00012192,2]
[327268165,1715952638904,-156.03,0.00012192,2]
[327268166,1715952638913,-1518.2303,0.00012228,2]
[327268167,1715952638923,-11688.96296199,0.00012228,2]
[327268168,1715952638932,-158.8785107,0.00012249,2]
[327268169,1715952638941,-4251.60466798,0.00012289,2]
[327268170,1715952639012,-517.9058607,0.00012289,2]
[327268285,1715952640143,-2191.02132236,0.00012289,2]
[327268287,1715952640154,-1026.04080833,0.00012289,2]
[327268289,1715952640164,-2753.78948056,0.00012289,2]
[327268312,1715952640391,-852.78740708,0.00012289,2]
[327268602,1715952642812,-95.81341494,0.00012289,2]
[327268604,1715952642823,-3601.026,0.00012292,2]
[327268606,1715952642833,-501.5707417,0.00012328,2]
[327268608,1715952642842,-517.94113887,0.00012328,2]
[327268610,1715952642851,-501.35270242,0.00012328,2]
[327268612,1715952642860,-516.74639983,0.00012328,2]
[327268614,1715952642870,-502.89318022,0.00012328,2]
[327268617,1715952642880,-634.21265861,0.00012328,2]
[327268619,1715952642889,-500.0,0.00012328,2]
[327268621,1715952642898,-503.00128532,0.00012328,2]
[327268623,1715952642907,-503.15524515,0.00012328,2]
[327268624,1715952642916,-503.5815367,0.00012328,2]
[327268626,1715952642925,-258.40201891,0.00012328,2]
[327268629,1715952642935,-500.0,0.00012328,2]
[327268630,1715952642943,-462.99176933,0.00012328,2]
[327268633,1715952642956,-64.46865018,0.00012328,2]
[327268635,1715952642965,-500.0,0.00012328,2]
[327268637,1715952642975,-512.00020872,0.00012328,2]
[327268639,1715952642984,-521.85339442,0.00012328,2]
[327268641,1715952642992,-346.3699555,0.00012328,2]
[327268643,1715952643001,-200.0,0.00012328,2]
[327268645,1715952643011,-500.0,0.00012328,2]
[327268647,1715952643020,-521.19458737,0.00012328,2]
[327268649,1715952643029,-513.42620808,0.00012328,2]
[327268651,1715952643038,-178.7785082,0.00012328,2]
[327268653,1715952643047,-528.73129064,0.00012328,2]
[327268654,1715952643056,-363.5519934,0.00012328,2]
[327268657,1715952643066,-502.07711679,0.00012328,2]
[327268658,1715952643077,-500.0,0.00012328,2]
[327268660,1715952643086,-556.45823815,0.00012328,2]
[327268662,1715952643096,-508.46203332,0.00012328,2]
[327268664,1715952643105,-500.0,0.00012328,2]
[327268667,1715952643114,-502.977179,0.00012328,2]
[327268669,1715952643124,-500.0,0.00012328,2]
[327268671,1715952643133,-503.2868089,0.00012328,2]
[327268672,1715952643142,-233.56800099,0.00012328,2]
[327268675,1715952643151,-413.90428899,0.00012328,2]
[327268677,1715952643161,-500.0,0.00012328,2]
[327268679,1715952643170,-548.51,0.00012328,2]
[327268681,1715952643180,-500.0,0.00012328,2]
[327268683,1715952643190,-500.0,0.00012328,2]
[327268685,1715952643200,-500.0,0.00012328,2]
[327268686,1715952643216,-500.0,0.00012328,2]
[327268689,1715952643226,-464.21591574,0.00012328,2]
[327268691,1715952643235,-500.0,0.00012328,2]
[327268693,1715952643246,-500.0,0.00012328,2]
[327268695,1715952643257,-500.0,0.00012328,2]
[327268697,1715952643267,-500.0,0.00012328,2]
[327268699,1715952643277,-500.0,0.00012328,2]
[327268701,1715952643291,-345.71,0.00012328,2]
[327268703,1715952643302,-500.0,0.00012328,2]
[327268705,1715952643311,-500.0,0.00012328,2]
[327268707,1715952643322,-563.11,0.00012328,2]
[327268709,1715952643331,-500.0,0.00012328,2]
[327268711,1715952643340,-377.6,0.00012328,2]
[327268713,1715952643350,-500.0,0.00012328,2]
[327268715,1715952643359,-500.0,0.00012328,2]
[327268717,1715952643369,-429.84435486,0.00012328,2]
[327268719,1715952643378,-500.0,0.00012328,2]
[327268721,1715952643387,-308.41126675,0.00012328,2]
[327268726,1715952643425,-191.58873325,0.00012328,2]
[327268728,1715952643435,-500.0,0.00012328,2]
[327268730,1715952643445,-500.0,0.00012328,2]
[327268732,1715952643454,-500.0,0.00012328,2]
[327268734,1715952643463,-512.11,0.00012328,2]
[327268736,1715952643473,-500.0,0.00012328,2]
[327268738,1715952643482,-267.72742085,0.00012328,2]
[327268741,1715952643503,-232.27257915,0.00012328,2]
[327268743,1715952643512,-500.0,0.00012328,2]
[327268745,1715952643521,-500.0,0.00012328,2]
[327268747,1715952643531,-133.14890784,0.00012328,2]
[327268749,1715952643542,-366.85109216,0.00012328,2]
[327268751,1715952643551,-500.0,0.00012328,2]
[327268753,1715952643560,-500.0,0.00012328,2]
[327268755,1715952643571,-500.0,0.00012328,2]
[327268757,1715952643580,-259.57329871,0.00012328,2]
[327268759,1715952643589,-500.0,0.00012328,2]
[327268761,1715952643599,-500.0,0.00012328,2]
[327268763,1715952643608,-500.0,0.00012328,2]
[327268765,1715952643618,-500.0,0.00012328,2]
[327268767,1715952643627,-236.59,0.00012328,2]
[327268769,1715952643637,-500.0,0.00012328,2]
[327268771,1715952643647,-500.0,0.00012328,2]
[327268774,1715952643660,-541.27,0.00012328,2]
[327268776,1715952643673,-618.14,0.00012328,2]
[327268778,1715952643685,-478.76759759,0.00012328,2]
[327268781,1715952643702,-21.23240241,0.00012328,2]
[327268783,1715952643714,-500.0,0.00012328,2]
[327268786,1715952643725,-500.0,0.00012328,2]
[327268788,1715952643735,-183.99,0.00012328,2]
[327268790,1715952643748,-500.0,0.00012328,2]
[327268792,1715952643759,-500.0,0.00012328,2]
[327268794,1715952643770,-186.24,0.00012328,2]
[327268797,1715952643782,-601.93256708,0.00012328,2]
[327268799,1715952643794,-500.0,0.00012328,2]
[327268801,1715952643805,-149.40420442,0.00012328,2]
[327268804,1715952643821,-356.61834058,0.00012328,2]
[327268806,1715952643832,-603.4,0.00012328,2]
[327268808,1715952643846,-500.0,0.00012328,2]
[327268811,1715952643858,-506.15,0.00012328,2]
[327268813,1715952643869,-180.50131205,0.00012328,2]
[327268815,1715952643881,-183.71015689,0.00012328,2]
[327268817,1715952643891,-295.47952742,0.00012328,2]
[327268820,1715952643902,-500.0,0.00012328,2]
[327268822,1715952643913,-500.0,0.00012328,2]
[327268824,1715952643924,-523.23,0.00012328,2]
[327268826,1715952643936,-500.0,0.00012328,2]
[327268829,1715952643948,-500.0,0.00012328,2]
[327268831,1715952643959,-489.68,0.00012328,2]
[327268833,1715952643970,-411.34929263,0.00012328,2]
[327268835,1715952643981,-500.0,0.00012328,2]
[327268838,1715952643992,-500.0,0.00012328,2]
[327268840,1715952644002,-500.0,0.00012328,2]
[327268842,1715952644013,-500.0,0.00012328,2]
[327268844,1715952644024,-500.0,0.00012328,2]
[327268846,1715952644041,-500.0,0.00012328,2]
[327268848,1715952644053,-500.0,0.00012328,2]
[327268850,1715952644064,-500.0,0.00012328,2]
[327268852,1715952644078,-500.0,0.00012328,2]
[327268855,1715952644089,-500.0,0.00012328,2]
[327268857,1715952644101,-244.32628564,0.00012328,2]
[327268859,1715952644113,-500.0,0.00012328,2]
[327268862,1715952644124,-464.58571611,0.00012328,2]
[327268864,1715952644136,-500.0,0.00012328,2]
[327268866,1715952644148,-500.0,0.00012328,2]
[327268868,1715952644159,-500.0,0.00012328,2]
[327268870,1715952644169,-500.0,0.00012328,2]
[327268872,1715952644179,-500.0,0.00012328,2]
[327268873,1715952644188,-287.47866665,0.00012328,2]
[327268874,1715952644206,-500.0,0.00012328,2]
[327268875,1715952644218,-500.0,0.00012328,2]
[327268876,1715952644231,-500.0,0.00012328,2]
[327268877,1715952644244,-500.0,0.00012328,2]
[327268878,1715952644256,-500.0,0.00012328,2]
[327268879,1715952644268,-500.0,0.00012328,2]
[327268880,1715952644278,-500.0,0.00012328,2]
[327268881,1715952644289,-521.42,0.00012328,2]
[327268882,1715952644300,-500.0,0.00012328,2]
[327268883,1715952644311,-500.0,0.00012328,2]
[327268885,1715952644324,-500.0,0.00012328,2]
[327268886,1715952644336,-590.42303454,0.00012328,2]
[327268887,1715952644347,-500.0,0.00012328,2]
[327268888,1715952644356,-500.0,0.00012328,2]
[327268889,1715952644367,-500.0,0.00012328,2]
[327268890,1715952644378,-500.0,0.00012328,2]
[327268891,1715952644389,-500.0,0.00012328,2]
[327268893,1715952644400,-500.0,0.00012328,2]
[327268895,1715952644410,-500.0,0.00012328,2]
[327268897,1715952644423,-500.0,0.00012328,2]
[327268899,1715952644434,-500.0,0.00012328,2]
[327268901,1715952644445,-500.0,0.00012328,2]
[327268903,1715952644456,-500.0,0.00012328,2]
[327268905,1715952644467,-500.0,0.00012328,2]
[327268908,1715952644478,-500.0,0.00012328,2]
[327268910,1715952644488,-500.0,0.00012328,2]
[327268912,1715952644499,-500.0,0.00012328,2]
[327268914,1715952644510,-202.14,0.00012328,2]
[327268916,1715952644521,-500.0,0.00012328,2]
[327268918,1715952644531,-500.0,0.00012328,2]
[327268920,1715952644542,-500.0,0.00012328,2]
[327268922,1715952644553,-500.0,0.00012328,2]
[327268924,1715952644565,-500.0,0.00012328,2]
[327268927,1715952644578,-330.9,0.00012328,2]
[327268929,1715952644589,-500.0,0.00012328,2]
[327268931,1715952644599,-500.0,0.00012328,2]
[327268933,1715952644610,-500.0,0.00012328,2]
[327268935,1715952644621,-500.0,0.00012328,2]
[327268938,1715952644632,-193.2,0.00012328,2]
[327268940,1715952644644,-500.0,0.00012328,2]
[327268942,1715952644654,-500.0,0.00012328,2]
[327268944,1715952644665,-500.0,0.00012328,2]
[327268946,1715952644676,-209.5,0.00012328,2]
[327268949,1715952644687,-500.0,0.00012328,2]
[327268951,1715952644698,-278.18,0.00012328,2]
[327268953,1715952644708,-500.0,0.00012328,2]
[327268955,1715952644719,-516.52,0.00012328,2]
[327268957,1715952644730,-500.0,0.00012328,2]
[327268959,1715952644741,-596.88172406,0.00012328,2]
[327268962,1715952644752,-500.0,0.00012328,2]
[327268964,1715952644762,-150.0,0.00012328,2]
[327268966,1715952644773,-500.0,0.00012328,2]
[327268968,1715952644784,-500.0,0.00012328,2]
[327268969,1715952644796,-500.0,0.00012328,2]
[327268970,1715952644807,-213.84,0.00012328,2]
[327268971,1715952644818,-500.0,0.00012328,2]
[327268972,1715952644831,-500.0,0.00012328,2]
[327268973,1715952644842,-500.0,0.00012328,2]
[327268974,1715952644852,-500.0,0.00012328,2]
[327268975,1715952644863,-500.0,0.00012328,2]
[327268976,1715952644874,-545.87478642,0.00012328,2]
[327268977,1715952644886,-500.0,0.00012328,2]
[327268978,1715952644897,-500.0,0.00012328,2]
[327268979,1715952644908,-552.76,0.00012328,2]
[327268980,1715952644919,-500.0,0.00012328,2]
[327268981,1715952644930,-500.0,0.00012328,2]
[327268982,1715952644941,-500.0,0.00012328,2]
[327268983,1715952644952,-500.0,0.00012328,2]
[327268984,1715952644963,-500.0,0.00012328,2]
[327268985,1715952644974,-324.37,0.00012328,2]
[327268986,1715952644986,-595.66,0.00012328,2]
[327268987,1715952644997,-500.0,0.00012328,2]
[327268988,1715952645009,-500.0,0.00012328,2]